fUST/lending_fUST_20240719
["ID","MTS","AMOUNT","RATE_DAILY","PERIOD"]
[332606150,1721341858117,-500.0,0.00021917,2]
[332606151,1721341858127,-500.0,0.00021917,2]
[332606152,1721341858137,-500.0,0.00021917,2]
[332606153,1721341858146,-500.0,0.00021917,2]
[332606154,1721341858156,-500.0,0.00021917,2]
[332606155,1721341858165,-500.0,0.00021917,2]
[332606156,1721341858175,-581.18205237,0.00021917,2]
[332606157,1721341858184,-500.0,0.00021917,2]
[332606158,1721341858194,-500.0,0.00021917,2]
[332606159,1721341858204,-295.11271278,0.00021917,2]
[332606160,1721341858214,-500.0,0.00021917,2]
[332606161,1721341858223,-500.0,0.00021917,2]
[332606162,1721341858233,-500.0,0.00021917,2]
[332606163,1721341858243,-500.0,0.00021917,2]
[332606164,1721341858252,-500.0,0.00021917,2]
[332606165,1721341858262,-500.0,0.00021917,2]
[332606166,1721341858272,-500.0,0.00021917,2]
[332606167,1721341858282,-500.0,0.00021917,2]
[332606168,1721341858293,-500.0,0.00021917,2]
[332606169,1721341858304,-500.0,0.00021917,2]
[332606170,1721341858315,-500.0,0.00021917,2]
[332606171,1721341858327,-500.0,0.00021917,2]
[332606172,1721341858337,-500.0,0.00021917,2]
[332606173,1721341858350,-500.0,0.00021917,2]
[332606174,1721341858359,-500.0,0.00021917,2]
[332606175,1721341858369,-500.0,0.00021917,2]
[332606176,1721341858378,-403.82288252,0.00021917,2]
[332606177,1721341858388,-500.0,0.00021917,2]
[332606178,1721341858397,-500.0,0.00021917,2]
[332606179,1721341858407,-500.0,0.00021917,2]
[332606180,1721341858416,-500.0,0.00021917,2]
[332606181,1721341858425,-500.0,0.00021917,2]
[332606182,1721341858435,-500.0,0.00021917,2]
[332606183,1721341858444,-500.0,0.00021917,2]
[332606184,1721341858454,-500.0,0.00021917,2]
[332606185,1721341858463,-500.0,0.00021917,2]
[332606186,1721341858472,-500.0,0.00021917,2]
[332606187,1721341858482,-500.0,0.00021917,2]
[332606188,1721341858492,-500.0,0.00021917,2]
[332606189,1721341858503,-500.0,0.00021917,2]
[332606190,1721341858512,-500.0,0.00021917,2]
[332606191,1721341858521,-323.41228725,0.00021917,2]
[332606192,1721341858531,-500.0,0.00021917,2]
[332606193,1721341858540,-500.0,0.00021917,2]
[332606194,1721341858550,-500.0,0.00021917,2]
[332606195,1721341858559,-500.0,0.00021917,2]
[332606196,1721341858568,-500.0,0.00021917,2]
[332606197,1721341858578,-500.0,0.00021917,2]
[332606198,1721341858587,-500.0,0.00021917,2]
[332606199,1721341858596,-500.0,0.00021917,2]
[332606200,1721341858605,-500.0,0.00021917,2]
[332606201,1721341858615,-500.0,0.00021917,2]
[332606202,1721341858624,-255.96844827,0.00021917,2]
[332606203,1721341858633,-500.0,0.00021917,2]
[332606204,1721341858642,-500.0,0.00021917,2]
[332606205,1721341858652,-500.0,0.00021917,2]
[332606206,1721341858661,-500.0,0.00021917,2]
[332606207,1721341858670,-500.0,0.00021917,2]
[332606208,1721341858680,-500.0,0.00021917,2]
[332606209,1721341858690,-500.0,0.00021917,2]
[332606210,1721341858699,-500.0,0.00021917,2]
[332606211,1721341858709,-500.0,0.00021917,2]
[332606212,1721341858719,-500.0,0.00021917,2]
[332606213,1721341858729,-500.0,0.00021917,2]
[332606214,1721341858738,-500.0,0.00021917,2]
[332606215,1721341858748,-501.97715973,0.00021917,2]
[332606216,1721341858758,-268.43998356,0.00021917,2]
[332606217,1721341858767,-500.0,0.00021917,2]
[332606218,1721341858777,-500.0,0.00021917,2]
[332606219,1721341858786,-500.0,0.00021917,2]
[332606220,1721341858797,-500.0,0.00021917,2]
[332606221,1721341858806,-500.0,0.00021917,2]
[332606222,1721341858816,-567.69563021,0.00021917,2]
[332606223,1721341858825,-503.4812015,0.00021917,2]
[332606224,1721341858835,-500.0,0.00021917,2]
[332606225,1721341858845,-502.04515639,0.00021917,2]
[332606226,1721341858856,-500.0,0.00021917,2]
[332606227,1721341858865,-503.25983227,0.00021917,2]
[332606228,1721341858877,-500.0,0.00021917,2]
[332606229,1721341858888,-500.0,0.00021917,2]
[332606230,1721341858899,-531.63994379,0.00021917,2]
[332606231,1721341858910,-500.0,0.00021917,2]
[332606232,1721341858921,-500.0,0.00021917,2]
[332606233,1721341858931,-500.0,0.00021917,2]
[332606234,1721341858941,-500.0,0.00021917,2]
[332606235,1721341858952,-162.50971019,0.00021917,2]
[332606236,1721341858962,-500.0,0.00021917,2]
[332606237,1721341858971,-500.0,0.00021917,2]
[332606238,1721341858981,-500.0,0.00021917,2]
[332606239,1721341858991,-500.0,0.00021917,2]
[332606240,1721341859001,-500.0,0.00021917,2]
[332606241,1721341859010,-500.0,0.00021917,2]
[332606242,1721341859020,-500.0,0.00021917,2]
[332606243,1721341859030,-500.0,0.00021917,2]
[332606244,1721341859041,-501.14957988,0.00021917,2]
[332606245,1721341859051,-500.0,0.00021917,2]
[332606246,1721341859062,-500.0,0.00021917,2]
[332606247,1721341859072,-500.0,0.00021917,2]
[332606248,1721341859081,-500.0,0.00021917,2]
[332606249,1721341859091,-500.0,0.00021917,2]
[332606250,1721341859100,-500.0,0.00021917,2]
[332606251,1721341859110,-500.0,0.00021917,2]
[332606252,1721341859120,-500.0,0.00021917,2]
[332606253,1721341859129,-500.0,0.00021917,2]
[332606254,1721341859138,-500.0,0.00021917,2]
[332606255,1721341859148,-500.0,0.00021917,2]
[332606256,1721341859158,-500.0,0.00021917,2]
[332606257,1721341859168,-500.0,0.00021917,2]
[332606258,1721341859177,-500.0,0.00021917,2]
[332606259,1721341859187,-500.0,0.00021917,2]
[332606260,1721341859197,-9623.6,0.00021917,2]
[332606261,1721341859206,-9623.6,0.00021917,2]
[332606262,1721341859216,-504.4872834,0.00021917,2]
[332606263,1721341859226,-500.0,0.00021917,2]
[332606264,1721341859235,-500.0,0.00021917,2]
[332606265,1721341859244,-500.0,0.00021917,2]
[332606266,1721341859254,-500.0,0.00021917,2]
[332606267,1721341859266,-501.83082212,0.00021917,2]
[332606268,1721341859275,-500.0,0.00021917,2]
[332606269,1721341859286,-1257.33,0.00021917,2]
[332606270,1721341859297,-500.0,0.00021917,2]
[332606271,1721341859309,-505.79602796,0.00021917,2]
[332606272,1721341859323,-500.0,0.00021917,2]
[332606273,1721341859339,-506.21244331,0.00021917,2]
[332606274,1721341859351,-504.35437939,0.00021917,2]
[332606275,1721341859361,-262.63840204,0.00021917,2]
[332606276,1721341859374,-500.0,0.00021917,2]
[332606277,1721341859383,-500.0,0.00021917,2]
[332606278,1721341859393,-635.86647357,0.00021917,2]
[332606279,1721341859403,-500.0,0.00021917,2]
[332606280,1721341859414,-500.0,0.00021917,2]
[332606281,1721341859424,-500.0,0.00021917,2]
[332606282,1721341859433,-500.0,0.00021917,2]
[332606283,1721341859443,-500.0,0.00021917,2]
[332606284,1721341859453,-500.0,0.00021917,2]
[332606285,1721341859463,-511.18774902,0.00021917,2]
[332606286,1721341859472,-500.0,0.00021917,2]
[332606287,1721341859482,-556.38999052,0.00021917,2]
[332606288,1721341859493,-500.0,0.00021917,2]
[332606289,1721341859504,-502.27084802,0.00021917,2]
[332606290,1721341859514,-500.0,0.00021917,2]
[332606291,1721341859524,-500.0,0.00021917,2]
[332606292,1721341859535,-500.0,0.00021917,2]
[332606293,1721341859549,-500.0,0.00021917,2]
[332606294,1721341859558,-239.65300197,0.00021917,2]
[332606295,1721341859568,-500.0,0.00021917,2]
[332606296,1721341859578,-500.0,0.00021917,2]
[332606297,1721341859589,-500.0,0.00021917,2]
[332606298,1721341859600,-500.0,0.00021917,2]
[332606299,1721341859612,-501.06330563,0.00021917,2]
[332606300,1721341859622,-500.0,0.00021917,2]
[332606301,1721341859633,-500.0,0.00021917,2]
[332606302,1721341859643,-508.41772906,0.00021917,2]
[332606303,1721341859655,-500.0,0.00021917,2]
[332606304,1721341859666,-527.16860966,0.00021917,2]
[332606305,1721341859676,-1002.77,0.00021917,2]
[332606306,1721341859686,-500.0,0.00021917,2]
[332606307,1721341859697,-500.0,0.00021917,2]
[332606308,1721341859706,-500.0,0.00021917,2]
[332606309,1721341859715,-500.0,0.00021917,2]
[332606310,1721341859724,-500.0,0.00021917,2]
[332606311,1721341859734,-500.0,0.00021917,2]
[332606312,1721341859743,-500.0,0.00021917,2]
[332606313,1721341859752,-500.0,0.00021917,2]
[332606314,1721341859763,-500.0,0.00021917,2]
[332606315,1721341859772,-500.0,0.00021917,2]
[332606316,1721341859782,-501.61520268,0.00021917,2]
[332606317,1721341859793,-509.32613113,0.00021917,2]
[332606318,1721341859804,-500.0,0.00021917,2]
[332606319,1721341859814,-500.0,0.00021917,2]
[332606320,1721341859825,-500.0,0.00021917,2]
[332606321,1721341859835,-500.0,0.00021917,2]
[332606322,1721341859846,-642.38857686,0.00021917,2]
[332606323,1721341859858,-500.0,0.00021917,2]
[332606324,1721341859868,-500.0,0.00021917,2]
[332606325,1721341859878,-500.0,0.00021917,2]
[332606326,1721341859888,-707.75,0.00021917,2]
[332606327,1721341859898,-6441.17,0.00021917,2]
[332606328,1721341859907,-16220.36,0.00021917,2]
[332606329,1721341859916,-4852.68,0.00021917,2]
[332606330,1721341859925,-10773.18,0.00021917,2]
[332606331,1721341859934,-703.44,0.00021917,2]
[332606332,1721341859944,-500.0,0.00021917,2]
[332606333,1721341859953,-500.0,0.00021917,2]
[332606334,1721341859962,-500.0,0.00021917,2]
[332606335,1721341859971,-500.0,0.00021917,2]
[332606336,1721341859981,-500.0,0.00021917,2]
[332606337,1721341859990,-500.0,0.00021917,2]
[332606338,1721341860000,-500.0,0.00021917,2]
[332606339,1721341860009,-317.32365848,0.00021917,2]
[332606340,1721341860019,-500.0,0.00021917,2]
[332606341,1721341860028,-500.0,0.00021917,2]
[332606342,1721341860037,-500.0,0.00021917,2]
[332606343,1721341860047,-500.0,0.00021917,2]
[332606344,1721341860056,-157.26660909,0.00021917,2]
[332606345,1721341860066,-522.21,0.00021917,2]
[332606346,1721341860077,-500.0,0.00021917,2]
[332606347,1721341860086,-500.0,0.00021917,2]
[332606348,1721341860095,-500.0,0.00021917,2]
[332606349,1721341860104,-500.0,0.00021917,2]
[332606350,1721341860114,-500.0,0.00021917,2]
[332606351,1721341860123,-512.18271713,0.00021917,2]
[332606352,1721341860132,-161.25013345,0.00021917,2]
[332606353,1721341860142,-175.89349037,0.00021917,2]
[332606354,1721341860151,-500.0,0.00021917,2]
[332606355,1721341860161,-453.14689976,0.00021917,2]
[332606356,1721341860170,-500.0,0.00021917,2]
[332606357,1721341860179,-500.0,0.00021917,2]
[332606358,1721341860189,-500.53189331,0.00021917,2]
[332606359,1721341860199,-525.13599046,0.00021917,2]
[332606360,1721341860209,-506.60221908,0.00021917,2]
[332606361,1721341860218,-503.86326104,0.00021917,2]
[332606362,1721341860228,-512.86984581,0.00021917,2]
[332606363,1721341860238,-505.58849892,0.00021917,2]
[332606364,1721341860247,-284.52035534,0.00021917,2]
[332606365,1721341860258,-503.43520496,0.00021917,2]
[332606366,1721341860268,-506.38220685,0.00021917,2]
[332606367,1721341860278,-506.35107694,0.00021917,2]
[332606368,1721341860288,-504.83395886,0.00021917,2]
[332606369,1721341860300,-506.24448823,0.00021917,2]
[332606370,1721341860310,-505.33863954,0.00021917,2]
[332606371,1721341860319,-502.26901348,0.00021917,2]
[332606372,1721341860329,-501.68822759,0.00021917,2]
[332606373,1721341860342,-507.57372966,0.00021917,2]
[332606374,1721341860352,-506.82530845,0.00021917,2]
[332606375,1721341860361,-508.95441983,0.00021917,2]
[332606376,1721341860370,-504.46940117,0.00021917,2]
[332606377,1721341860379,-507.02756671,0.00021917,2]
[332606378,1721341860388,-409.42811845,0.00021917,2]
[332606379,1721341860397,-507.61720522,0.00021917,2]
[332606380,1721341860407,-512.03489685,0.00021917,2]
[332606381,1721341860416,-633.05677512,0.00021917,2]
[332606382,1721341860425,-507.53972635,0.00021917,2]
[332606383,1721341860435,-502.98800892,0.00021917,2]
[332606384,1721341860444,-512.60130436,0.00021917,2]
[332606385,1721341860454,-505.6750581,0.00021917,2]
[332606386,1721341860463,-520.71047759,0.00021917,2]
[332606387,1721341860475,-502.03335675,0.00021917,2]
[332606388,1721341860485,-513.07080278,0.00021917,2]
[332606389,1721341860494,-506.13732651,0.00021917,2]
[332606390,1721341860504,-505.12738086,0.00021917,2]
[332606391,1721341860514,-600.0,0.00021917,2]
[332606392,1721341860523,-504.89947715,0.00021917,2]
[332606393,1721341860532,-264.46228017,0.00021917,2]
[332606394,1721341860541,-620.53256862,0.00021917,2]
[332606395,1721341860552,-384.27853086,0.00021917,2]
[332606396,1721341860562,-508.53845418,0.00021917,2]
[332606397,1721341860571,-505.96309551,0.00021917,2]
[332606398,1721341860581,-512.75712961,0.00021917,2]
[332606399,1721341860591,-504.99494878,0.00021917,2]
[332606400,1721341860600,-502.35237398,0.00021917,2]
[332606401,1721341860609,-509.11976701,0.00021917,2]
[332606402,1721341860618,-510.21601379,0.00021917,2]
[332606403,1721341860627,-522.41382666,0.00021917,2]
[332606404,1721341860636,-500.0,0.00021917,2]
[332606405,1721341860758,-498.87232176,0.00021917,2]
[332606406,1721341860780,-505.75979001,0.00021917,2]
[332606407,1721341860789,-340.63638274,0.00021917,2]
[332606408,1721341860800,-185.40252839,0.00021917,2]
[332606409,1721341860810,-500.0,0.00021917,2]
[332606410,1721341860819,-500.0,0.00021917,2]
[332606411,1721341860829,-551.98589564,0.00021917,2]
[332606412,1721341860838,-505.00026679,0.00021917,2]
[332606413,1721341860849,-504.50586564,0.00021917,2]
[332606414,1721341860859,-502.51675599,0.00021917,2]
[332606415,1721341860869,-505.42634236,0.00021917,2]
[332606416,1721341860878,-508.01239166,0.00021917,2]
[332606417,1721341860887,-507.49316002,0.00021917,2]
[332606418,1721341860897,-452.01768539,0.00021917,2]
[332606419,1721341860907,-510.6052737,0.00021917,2]
[332606420,1721341860916,-502.37985391,0.00021917,2]
[332606421,1721341860925,-503.4498096,0.00021917,2]
[332606422,1721341860934,-505.90429888,0.00021917,2]
[332606423,1721341860944,-502.66602007,0.00021917,2]
[332606424,1721341860953,-507.41955512,0.00021917,2]
[332606425,1721341860963,-640.13017364,0.00021917,2]
[332606426,1721341860973,-541.21103131,0.00021917,2]
[332606427,1721341860982,-576.58664593,0.00021917,2]
[332606428,1721341860992,-505.04670102,0.00021917,2]
[332606429,1721341861001,-501.18541397,0.00021917,2]
[332606430,1721341861012,-502.26918933,0.00021917,2]
[332606431,1721341861021,-501.82752301,0.00021917,2]
[332606432,1721341861031,-500.0,0.00021917,2]
[332606433,1721341861041,-502.61710115,0.00021917,2]
[332606434,1721341861054,-500.27965624,0.00021917,2]
[332606435,1721341861064,-505.79083701,0.00021917,2]
[332606436,1721341861074,-501.40445756,0.00021917,2]
[332606437,1721341861087,-507.60324464,0.00021917,2]
[332606438,1721341861097,-601.4404759,0.00021917,2]
[332606439,1721341861106,-508.40747236,0.00021917,2]
[332606440,1721341861116,-505.38656259,0.00021917,2]
[332606441,1721341861126,-505.82535912,0.00021917,2]
[332606442,1721341861136,-504.07366596,0.00021917,2]
[332606443,1721341861145,-507.78008236,0.00021917,2]
[332606444,1721341861155,-520.58866255,0.00021917,2]
[332606445,1721341861165,-500.0,0.00021917,2]
[332606446,1721341861175,-607.66260239,0.00021917,2]
[332606447,1721341861185,-500.0,0.00021917,2]
[332606448,1721341861195,-503.05358339,0.00021917,2]
[332606449,1721341861204,-500.0,0.00021917,2]
[332606450,1721341861214,-500.0,0.00021917,2]
[332606451,1721341861223,-504.71118476,0.00021917,2]
[332606452,1721341861233,-500.0,0.00021917,2]
[332606453,1721341861243,-556.81312879,0.00021917,2]
[332606454,1721341861253,-513.56455746,0.00021917,2]
[332606455,1721341861263,-511.53344537,0.00021917,2]
[332606456,1721341861272,-536.43472637,0.00021917,2]
[332606457,1721341861282,-536.19923691,0.00021917,2]
[332606458,1721341861292,-518.74191654,0.00021917,2]
[332606459,1721341861302,-500.10066906,0.00021917,2]
[332606460,1721341861312,-508.06185736,0.00021917,2]
[332606461,1721341861322,-521.71487689,0.00021917,2]
[332606462,1721341861336,-500.0,0.00021917,2]
[332606463,1721341861347,-561.86106778,0.00021917,2]
[332606464,1721341861357,-507.31838768,0.00021917,2]
[332606465,1721341861367,-507.31427842,0.00021917,2]
[332606466,1721341861379,-513.76244078,0.00021917,2]
[332606467,1721341861390,-502.09851336,0.00021917,2]
[332606468,1721341861401,-517.7341446,0.00021917,2]
[332606469,1721341861411,-503.88513143,0.00021917,2]
[332606470,1721341861421,-504.93296618,0.00021917,2]
[332606471,1721341861431,-506.91295397,0.00021917,2]
[332606472,1721341861440,-506.69066342,0.00021917,2]
[332606473,1721341861450,-508.95489388,0.00021917,2]
[332606474,1721341861459,-367.519903,0.00021917,2]
[332606475,1721341861469,-560.94594483,0.00021917,2]
[332606476,1721341861478,-500.0,0.00021917,2]
[332606477,1721341861487,-505.18473607,0.00021917,2]
[332606478,1721341861498,-503.0271792,0.00021917,2]
[332606479,1721341861507,-500.0,0.00021917,2]
[332606480,1721341861516,-507.06947638,0.00021917,2]
[332606481,1721341861525,-508.74342327,0.00021917,2]
[332606482,1721341861534,-507.04945538,0.00021917,2]
[332606483,1721341861546,-604.38447341,0.00021917,2]
[332606484,1721341861555,-509.48492725,0.00021917,2]
[332606485,1721341861564,-509.54117435,0.00021917,2]
[332606486,1721341861574,-508.2472609,0.00021917,2]
[332606487,1721341861583,-508.78910911,0.00021917,2]
[332606488,1721341861593,-509.6452214,0.00021917,2]
[332606489,1721341861603,-534.39341058,0.00021917,2]
[332606490,1721341861612,-507.67137808,0.00021917,2]
[332606491,1721341861621,-509.10014452,0.00021917,2]
[332606492,1721341861631,-526.86203294,0.00021917,2]
[332606493,1721341861640,-500.0,0.00021917,2]
[332606494,1721341861650,-500.0,0.00021917,2]
[332606495,1721341861660,-500.0,0.00021917,2]
[332606496,1721341861670,-507.76574213,0.00021917,2]
[332606497,1721341861679,-508.75744489,0.00021917,2]
[332606498,1721341861688,-514.35876882,0.00021917,2]
[332606499,1721341861698,-528.16140898,0.00021917,2]
[332606500,1721341861707,-505.83705994,0.00021917,2]
[332606501,1721341861717,-516.56703163,0.00021917,2]
[332606502,1721341861727,-482.1983453,0.00021917,2]
[332606503,1721341861737,-533.22198924,0.00021917,2]
[332606504,1721341861746,-508.74569035,0.00021917,2]
[332606505,1721341861755,-541.30054131,0.00021917,2]
[332606506,1721341861765,-386.43321861,0.00021917,2]
[332606507,1721341861775,-507.46372555,0.00021917,2]
[332606508,1721341861784,-505.90798649,0.00021917,2]
[332606509,1721341861795,-518.73459796,0.00021917,2]
[332606510,1721341861805,-514.69036051,0.00021917,2]
[332606511,1721341861815,-465.58662141,0.00021917,2]
[332606512,1721341861826,-505.75457549,0.00021917,2]
[332606513,1721341861837,-503.226806,0.00021917,2]
[332606514,1721341861847,-505.61532738,0.00021917,2]
[332606515,1721341861858,-504.87720688,0.00021917,2]
[332606516,1721341861867,-504.89738134,0.00021917,2]
[332606517,1721341861878,-512.58336508,0.00021917,2]
[332606518,1721341861888,-562.92732411,0.00021917,2]
[332606519,1721341861900,-505.0511547,0.00021917,2]
[332606520,1721341861911,-506.87837929,0.00021917,2]
[332606521,1721341861921,-507.82869572,0.00021917,2]
[332606522,1721341861931,-500.0,0.00021917,2]
[332606523,1721341861943,-345.49670736,0.00021917,2]
[332606524,1721341861953,-508.04339968,0.00021917,2]
[332606525,1721341861963,-506.83938564,0.00021917,2]
[332606526,1721341861974,-506.31984586,0.00021917,2]
[332606527,1721341861985,-270.40072535,0.00021917,2]
[332606528,1721341861996,-505.69230395,0.00021917,2]
[332606529,1721341862007,-528.74376059,0.00021917,2]
[332606530,1721341862019,-500.0,0.00021917,2]
[332606531,1721341862036,-500.0,0.00021917,2]
[332606532,1721341862047,-500.0,0.00021917,2]
[332606533,1721341862061,-566.35201732,0.00021917,2]
[332606534,1721341862079,-500.0,0.00021917,2]
[332606535,1721341862096,-500.0,0.00021917,2]
[332606536,1721341862109,-623.53865679,0.00021917,2]
[332606537,1721341862123,-500.0,0.00021917,2]
[332606538,1721341862138,-500.0,0.00021917,2]
[332606539,1721341862155,-627.83,0.00021917,2]
[332606540,1721341862171,-511.21625268,0.00021917,2]
[332606541,1721341862187,-569.28257308,0.00021917,2]
[332606542,1721341862202,-500.0,0.00021917,2]
[332606543,1721341862217,-500.0,0.00021917,2]
[332606544,1721341862229,-500.0,0.00021917,2]
[332606545,1721341862245,-500.0,0.00021917,2]
[332606546,1721341862259,-570.88129103,0.00021917,2]
[332606547,1721341862274,-538.33640205,0.00021917,2]
[332606548,1721341862287,-500.0,0.00021917,2]
[332606549,1721341862301,-520.74,0.00021917,2]
[332606550,1721341862317,-418.04848323,0.00021917,2]
[332606551,1721341862334,-500.0,0.00021917,2]
[332606552,1721341862347,-5555.34,0.00021917,2]
[332606553,1721341862364,-504.4689577,0.00021917,2]
[332606554,1721341862381,-446.66880755,0.00021917,2]
[332606555,1721341862392,-175.45399858,0.00021917,2]
[332606556,1721341862404,-500.0,0.00021917,2]
[332606557,1721341862419,-516.63235372,0.00021917,2]
[332606558,1721341862435,-504.76180352,0.00021917,2]
[332606559,1721341862450,-500.0,0.00021917,2]
[332606560,1721341862463,-501.48064604,0.00021917,2]
[332606561,1721341862477,-515.23803061,0.00021917,2]
[332606562,1721341862490,-6843.89,0.00021917,2]
[332606563,1721341862504,-501.77429152,0.00021917,2]
[332606564,1721341862517,-510.02502486,0.00021917,2]
[332606565,1721341862530,-500.0,0.00021917,2]
[332606566,1721341862544,-500.0,0.00021917,2]
[332606567,1721341862556,-234.96980932,0.00021917,2]
[332606568,1721341862568,-592.07,0.00021917,2]
[332606569,1721341862580,-592.07,0.00021917,2]
[332606570,1721341862591,-592.07,0.00021917,2]
[332606571,1721341862606,-592.07,0.00021917,2]
[332606572,1721341862617,-592.07,0.00021917,2]
[332606573,1721341862630,-592.07,0.00021917,2]
[332606574,1721341862643,-592.07,0.00021917,2]
[332606575,1721341862655,-592.07,0.00021917,2]
[332606576,1721341862668,-592.07,0.00021917,2]
[332606577,1721341862681,-592.07,0.00021917,2]
[332606578,1721341862692,-592.07,0.00021917,2]
[332606579,1721341862704,-592.07,0.00021917,2]
[332606580,1721341862716,-592.07,0.00021917,2]
[332606581,1721341862729,-592.07,0.00021917,2]
[332606582,1721341862741,-592.07,0.00021917,2]
[332606583,1721341862753,-592.07,0.00021917,2]
[332606584,1721341862764,-592.07,0.00021917,2]
[332606585,1721341862776,-592.07,0.00021917,2]
[332606586,1721341862788,-592.07,0.00021917,2]
[332606587,1721341862801,-592.07,0.00021917,2]
[332606588,1721341862813,-592.07,0.00021917,2]
[332606589,1721341862824,-592.07,0.00021917,2]
[332606590,1721341862836,-592.07,0.00021917,2]
[332606591,1721341862850,-592.10190846,0.00021917,2]
[332606592,1721341862861,-500.0,0.00021917,2]
[332606593,1721341862873,-1712.55,0.00021917,2]
[332606594,1721341862885,-500.0,0.00021917,2]
[332606595,1721341862897,-8842.38,0.00021917,2]
[332606596,1721341862909,-8842.38,0.00021917,2]
[332606597,1721341862922,-8842.38,0.00021917,2]
[332606598,1721341862934,-8842.38,0.00021917,2]
[332606599,1721341862946,-8842.38,0.00021917,2]
[332606600,1721341862959,-8842.38,0.00021917,2]
[332606601,1721341862971,-8842.38,0.00021917,2]
[332606602,1721341862983,-8842.38,0.00021917,2]
[332606603,1721341862996,-8842.38,0.00021917,2]
[332606604,1721341863008,-8842.38,0.00021917,2]
[332606605,1721341863020,-8842.38,0.00021917,2]
[332606606,1721341863034,-8842.38,0.00021917,2]
[332606607,1721341863047,-8842.38,0.00021917,2]
[332606608,1721341863059,-8842.38,0.00021917,2]
[332606609,1721341863072,-8842.38,0.00021917,2]
[332606610,1721341863084,-8842.38,0.00021917,2]
[332606611,1721341863097,-8842.38,0.00021917,2]
[332606612,1721341863111,-8842.38,0.00021917,2]
[332606613,1721341863124,-8842.38,0.00021917,2]
[332606614,1721341863136,-8842.38,0.00021917,2]
[332606615,1721341863153,-8842.38,0.00021917,2]
[332606616,1721341863166,-8842.38,0.00021917,2]
[332606617,1721341863178,-8842.38,0.00021917,2]
[332606618,1721341863191,-8842.50594354,0.00021917,2]
[332606619,1721341863204,-512.78996724,0.00021917,2]
[332606620,1721341863217,-500.0,0.00021917,2]
[332606621,1721341863229,-500.0,0.00021917,2]
[332606622,1721341863242,-500.0,0.00021917,2]
[332606623,1721341863255,-270.86691166,0.00021917,2]
[332606624,1721341863266,-506.10517046,0.00021917,2]
[332606625,1721341863279,-500.0,0.00021917,2]
[332606626,1721341863291,-742.8,0.00021917,2]
[332606627,1721341863307,-500.0,0.00021917,2]
[332606628,1721341863320,-507.90155679,0.00021917,2]
[332606629,1721341863336,-565.48177985,0.00021917,2]
[332606630,1721341863348,-507.48365887,0.00021917,2]
[332606631,1721341863361,-607.16670657,0.00021917,2]
[332606632,1721341863376,-598.71,0.00021917,2]
[332606633,1721341863388,-501.91834937,0.00021917,2]
[332606634,1721341863401,-506.43820551,0.00021917,2]
[332606635,1721341863414,-507.73273973,0.00021917,2]
[332606636,1721341863427,-502.6834477,0.00021917,2]
[332606637,1721341863439,-509.04046401,0.00021917,2]
[332606638,1721341863451,-517.03532731,0.00021917,2]
[332606639,1721341863463,-510.35310677,0.00021917,2]
[332606640,1721341863475,-500.0,0.00021917,2]
[332606641,1721341863486,-502.70014355,0.00021917,2]
[332606642,1721341863498,-500.0,0.00021917,2]
[332606643,1721341863512,-501.13418141,0.00021917,2]
[332606644,1721341863523,-504.02392773,0.00021917,2]
[332606645,1721341863536,-504.94559786,0.00021917,2]
[332606646,1721341863547,-501.69105002,0.00021917,2]
[332606647,1721341863560,-585.18809052,0.00021917,2]
[332606648,1721341863572,-506.67973329,0.00021917,2]
[332606649,1721341863586,-500.0,0.00021917,2]